[Event "1st Serbian League 2022"]
[Site "Vrnjacka Banja"]
[Date "2022.09.23"]
[Round "4.31"]
[White "Sarana, Alexey"]
[Black "Ter-Sahakyan, Samvel"]
[Result "1/2-1/2"]
[ECO "D38"]
[WhiteElo "2662"]
[BlackElo "2630"]
[Annotator "TA"]
[PlyCount "35"]
[EventDate "2022.09.20"]
[EventType "team-tourn"]
[EventCountry "SRB"]
[SourceTitle "playchess.com"]
[Source "ChessBase"]
[SourceQuality "1"]
[TimeControl "40/5400+30:1800+30"]

{[%evp 9,35,6,13,0,0,0,0,0,0,0,0,0,0,0,0,-10,-14,-17,0,0,0,0,0,0,0,0,0,0]} 1. d4 {[%emt 0:00:03]} Nf6 {[%emt 0:00:10]} 2. c4 {[%emt 0:00:10]} e6 {[%emt 0:00:10]} 3. Nf3 {[%emt 0:00:08]} d5 {[%emt 0:00:08]} 4. Nc3 {[%emt 0:00:11]} Bb4 {[%emt 0:00:15]} 5. cxd5 {[%emt 0:00:15]} exd5 {[%emt 0:00:05] The position is equal.} 6. Bf4 {[%emt 0:00:19] D38: Queen's Gambit Declined: Ragozin Defence (4 Nf3 Bb4).} Ne4 {[%emt 0:00:22] seems to push 6...0-0 aside.} 7. Rc1 {[%emt 0:00:13]} Nc6 {[%emt 0:00:30]} 8. Nd2 {[%emt 0:00:33]} g5 {[%emt 0:00:21]} 9. Be3 {[%emt 0:00:17]} Nxc3 {[%emt 0:00:37]} 10. bxc3 {[%emt 0:00:09]} Ba3 {[%emt 0:00:10]} 11. Rb1 {[%emt 0:00:11][%cal Oh2h4]} f5 $1 {[%emt 0:00:36]} 12. f4 {[%emt 0:00:29] [#]} Bd6 $5 $146 {[%emt 0:00:59][%mdl 8] An interesting novelty.} ({Predecessor:} 12... Qe7 13. Bf2 gxf4 14. g3 fxg3 15. hxg3 O-O 16. Bg2 Be6 17. Rxb7 Rab8 18. Rxb8 Rxb8 {1-0 (50) Nyzhnyk,I (2665)-Grischuk,A (2777) Chess.com INT 2020}) 13. Bf2 {[%emt 0:00:46]} gxf4 {[%emt 0:02:29]} 14. e4 {[%emt 0:00:47]} fxe4 {[%emt 0:01:38]} 15. Qh5+ {[%emt 0:00:33]} Kf8 {[%emt 0:00:16] [#] ...e3 is the strong threat.} 16. Nxe4 {[%emt 0:00:33]} dxe4 {[%emt 0:00:21]} 17. Qh6+ {[%emt 0:00:05]} Ke8 {[%emt 0:00:08]} 18. Qh5+ $1 {[%emt 0:00:05] An interesting draw.  Weighted Error Value: White=0.02 (flawless) /Black=0.01 (flawless)} 1/2-1/2

[Event "1st Serbian League 2022"]
[Site "Vrnjacka Banja"]
[Date "2022.09.23"]
[Round "4.32"]
[White "Stojanovic, Mihajlo"]
[Black "Ivic, Velimir"]
[Result "1/2-1/2"]
[ECO "D31"]
[WhiteElo "2494"]
[BlackElo "2553"]
[Annotator "TA"]
[PlyCount "76"]
[EventDate "2022.09.20"]
[EventType "team-tourn"]
[EventCountry "SRB"]
[SourceTitle "playchess.com"]
[Source "ChessBase"]
[SourceQuality "1"]
[TimeControl "40/5400+30:1800+30"]

{[%evp 10,76,0,0,3,0,0,0,0,0,0,0,8,-22,0,-28,-32,-28,-28,-40,-48,-85,-81,-83,-76,-84,-73,-79,-77,-77,-70,-77,-81,-81,-73,-76,-79,-99,-82,-83,-91,-84,-54,-61,-49,-60,-64,-50,-51,-56,-56,-47,0,0,0,0,0,0,0,0,0,0,15,0,0,0,83,0,0]} 1. d4 {[%emt 0:01:48]} d5 {[%emt 0:00:22]} 2. c4 {[%emt 0:00:09]} e6 {[%emt 0:00:05][%cal Be7e6,Be6e5][%mdl 32]} 3. Nc3 {[%emt 0:00:06]} c6 {[%emt 0:00:06]} 4. e4 {[%emt 0:03:32]} dxe4 {[%emt 0:00:14]} 5. Nxe4 {[%emt 0:00:06]} Bb4+ {[%emt 0:00:05]} 6. Nc3 {[%emt 0:00:07]} e5 {[%emt 0:00:23] D31: Queen's Gambit Declined: Semi-Slav without ...Nf6 (+ Marshall Gambit and Noteboom) and Exchange Variation lines without ...Nf6.} 7. a3 {[%emt 0:02:12]} Bxc3+ {[%emt 0:00:57]} 8. bxc3 {[%emt 0:00:04]} Qa5 {[%emt 0:00:36]} 9. Bd2 {[%emt 0:03:16]} Nf6 {[%emt 0:00:38][%cal Bg8f6,Bf6e4,Be4d2][%mdl 32]} 10. Nf3 {[%emt 0:05:05]} Nbd7 {[%emt 0:03:54]} 11. dxe5 {[%emt 0:09:48]} (11. Be2 {keeps more tension.} e4 12. Ng5 e3 13. Bxe3 Qxc3+ 14. Kf1) 11... Nxe5 {[%emt 0:08:30] White must now prevent ...Bg4.} 12. Nxe5 {[%emt 0:00:07]} Qxe5+ {[%emt 0:00:05]} 13. Qe2 {[%emt 0:00:07]} Qxe2+ {[%emt 0:02:46]} 14. Bxe2 {[%emt 0:00:04] [#]} Ne4 $146 {[%emt 0:02:18]} ({Predecessor:} 14... Bg4 15. f3 Bf5 16. Kf2 O-O-O 17. Bg5 Bd3 18. Bxf6 gxf6 19. Rhd1 Bxe2 20. Kxe2 Rde8+ {½-½ (20) Talu,M (2034)-Bulau,A (2021) Calimanesti 2018}) 15. f3 {[%emt 0:04:37]} Nxd2 {[%emt 0:00:22]} 16. Kxd2 {[%emt 0:00:03]} Bf5 {[%emt 0:04:05]} 17. Rhd1 {[%emt 0:37:25]} O-O-O+ {[%emt 0:01:01]} 18. Ke1 {[%emt 0:02:54]} Rhe8 {[%emt 0:02:28]} 19. Rxd8+ {[%emt 0:00:16]} Kxd8 $17 {[%emt 0:00:17][%mdl 4096] Endgame KRB-KRB} 20. Kf2 {[%emt 0:01:02]} Re5 {[%emt 0:06:18]} 21. g4 {[%emt 0:00:03]} Bd7 {[%emt 0:06:03]} 22. f4 {[%emt 0:00:30]} Ra5 {[%emt 0:00:10]} 23. f5 {[%emt 0:06:36]} h5 {[%emt 0:11:29]} 24. h3 {[%emt 0:03:39]} h4 {[%emt 0:00:16]} 25. Bd3 {[%emt 0:02:21]} Ke7 {[%emt 0:01:29]} 26. Ke3 {[%emt 0:05:46]} Kf6 {[%emt 0:03:54]} 27. Kd4 {[%emt 0:00:22]} b6 {[%emt 0:01:44] Inhibits c5.} 28. Bc2 {[%emt 0:01:03]} Ke7 {[%emt 0:06:41]} 29. Ke3 $1 {[%emt 0:05:51]} Re5+ {[%emt 0:04:58]} 30. Be4 {[%emt 0:00:40]} g5 {[%emt 0:03:20]} (30... Be8 $15) 31. fxg6 $1 $11 {[%emt 0:02:39]} fxg6 {[%emt 0:00:21][%cal Od7f5] [#] And now ...Bf5! would win.} 32. Kf4 {[%emt 0:00:06][%csl LRe5,LRg6] Inhibits Bf5.} Rc5 {[%emt 0:04:49]} 33. Bxg6 {[%emt 0:00:03]} Rxc4+ {[%emt 0:00:05]} 34. Kg5 {[%emt 0:00:06]} Rxc3 {[%emt 0:00:10]} 35. Re1+ {[%emt 0:02:21]} Kd8 {[%emt 0:00:18]} 36. Rd1 {[%emt 0:00:13][%mdl 1024] [#] Bf5 is the strong threat. White has compensation.} Ke7 {[%emt 0:09:59]} (36... Rxa3 $2 37. Bf5 Rf3 38. Rxd7+ Ke8 39. Kf6 Rxf5+ 40. gxf5 $18) 37. Re1+ {[%emt 0:00:07]} Kd8 {[%emt 0:02:18]} (37... Kf8 $11 38. Rd1 Ke7) 38. Rd1 {[%emt 0:00:01]} (38. Kxh4 $16 {Hoping for Bf5.} Rxa3 39. Bf5 Bxf5 40. gxf5) 38... Ke7 {[%emt 0:02:57] Weighted Error Value: White=0.07 (flawless) /Black=0.08 (flawless)} (38... Rxa3 39. Bf5 Kc8 40. Rxd7 $18) 1/2-1/2

[Event "1st Serbian League 2022"]
[Site "Vrnjacka Banja"]
[Date "2022.09.23"]
[Round "4.33"]
[White "Nenezic, Marko"]
[Black "Pezelj, Novak"]
[Result "0-1"]
[ECO "A40"]
[WhiteElo "2528"]
[BlackElo "2496"]
[Annotator "TA"]
[PlyCount "82"]
[EventDate "2022.09.20"]
[EventType "team-tourn"]
[EventCountry "SRB"]
[SourceTitle "playchess.com"]
[Source "ChessBase"]
[SourceQuality "1"]
[TimeControl "40/5400+30:1800+30"]

{[%evp 9,82,43,81,50,47,12,23,19,58,26,30,0,0,-24,2,-7,18,19,14,17,22,11,22,-20,-37,-26,-19,-22,0,0,0,0,0,0,0,-37,0,0,0,0,0,-195,-187,-639,-618,-1043,-1052,-1024,-973,-1917,-663,-663,-663,-609,-533,-868,-164,-223,-192,-345,-354,-502,-565,-964,-954,-922,-922,-1112,-1021,-1848,-656,-1582,-1555,-1451,-1414]} 1. d4 {[%emt 0:00:31]} g6 {[%emt 0:00:40]} 2. c4 {[%emt 0:00:18]} Bg7 {[%emt 0:00:16]} 3. e4 {[%emt 0:00:26]} d6 {[%emt 0:03:21]} 4. Nf3 {[%emt 0:00:31]} c5 {[%emt 0:03:47]} 5. d5 {[%emt 0:02:58]} Nd7 {[%emt 0:02:51]} 6. Be2 {[%emt 0:03:52] A40: Unusual replies to 1 d4.} Ne5 {[%emt 0:01:12] [#]} 7. Nfd2 $146 {[%emt 0:07:29]} ({Predecessor:} 7. Nxe5 Bxe5 8. O-O Nf6 9. Qd3 Bd4 10. Nd2 e5 11. Nb3 Qe7 12. Re1 h6 13. Nxd4 cxd4 {1-0 (43) Zpevakova,J (2086)-Mareckova,M (2141) Czech Republic 2018}) 7... f5 {[%emt 0:08:04]} 8. exf5 {[%emt 0:13:18] White has an edge.} gxf5 {[%emt 0:10:34]} 9. h3 {[%emt 0:06:02]} Nf6 {[%emt 0:01:37][%cal Ob7b5]} 10. f4 {[%emt 0:00:15]} Ng6 {[%emt 0:00:34]} 11. O-O {[%emt 0:00:11]} b5 {[%emt 0:12:18]} 12. Nf3 {[%emt 0:06:57]} bxc4 {[%emt 0:11:40]} (12... O-O {seems wilder.} 13. cxb5 Nh5 14. Ng5 Ng3) 13. Nc3 {[%emt 0:02:06]} O-O {[%emt 0:03:55]} 14. Bxc4 {[%emt 0:00:20]} Rb8 {[%emt 0:04:06]} 15. Qd3 {[%emt 0:09:01]} Nh5 {[%emt 0:05:32]} 16. Ne1 {[%emt 0:11:24]} Qe8 {[%emt 0:04:46]} 17. Kh2 {[%emt 0:00:32]} Qf7 {[%emt 0:01:37]} 18. Nc2 {[%emt 0:02:25]} Kh8 {[%emt 0:09:36]} 19. g3 {[%emt 0:03:24]} e5 {[%emt 0:00:17]} 20. dxe6 $1 {[%emt 0:07:10]} Bxe6 {[%emt 0:00:05]} 21. Bxe6 {[%emt 0:00:58]} Qxe6 {[%emt 0:00:04]} 22. Ne3 {[%emt 0:04:08]} Rb4 {[%emt 0:01:23][%cal Rg6f4] White must now prevent ...Ngxf4!} 23. Nc2 {[%emt 0:02:05]} Rbb8 {[%emt 0:01:25]} 24. Re1 {[%emt 0:03:06]} Qg8 {[%emt 0:00:47]} 25. Ne3 $2 {[%emt 0:01:25] Black continues to play with concentration.} (25. Rg1 $11) 25... Nxg3 $1 $19 {[%emt 0:05:52]} 26. Kxg3 {[%emt 0:05:16] [#]} (26. Ng2 Nh5 27. Rd1) 26... Be5 $1 {[%emt 0:00:11][%mdl 512]} 27. Kf2 {[%emt 0:03:32]} (27. Qf1 Nxf4+) 27... Nxf4 {[%emt 0:00:15]} 28. Qf1 {[%emt 0:00:07]} Qg5 {[%emt 0:01:29] Hoping for ...Qh4+.} 29. Ng2 {[%emt 0:01:07] Prevents Qh4+.} Nxh3+ {[%emt 0:01:58]} (29... Bd4+ $142 30. Re3 Nxg2 31. Qxg2 Bxe3+ 32. Kf1 Qf4+ 33. Ke1 Bxc1) 30. Ke2 {[%emt 0:00:11]} f4 {[%emt 0:00:38] And now ...Bxc3 would win.} 31. Qf3 {[%emt 0:00:23]} Qf5 {[%emt 0:01:03]} 32. Nh4 {[%emt 0:01:58]} Qe6 {[%emt 0:01:56]} (32... Qc2+ 33. Kf1 Rg8 $1) 33. Kd1 {[%emt 0:00:27] [#]} Rg8 $1 {[%emt 0:01:01][%mdl 1024] ...Rg3 is the strong threat. Black has strong compensation.} 34. Kc2 $2 {[%emt 0:01:54]} (34. Ne4) 34... Rg3 {[%emt 0:00:22] Dancing on a razor blade.} 35. Qe4 {[%emt 0:00:41]} (35. Qh5 $142 Qc4 36. Ng6+ Rxg6 37. Rxe5) 35... Qf6 {[%emt 0:01:03][%csl LRc3,LRh4][%cal Re5c3] Black is clearly winning.} ({Not} 35... Nf2 36. Qxf4 Qh3 37. Qxf2 $11) 36. Nf3 {[%emt 0:00:06][%cal Rf3e5]} Nf2 {[%emt 0:00:10]} 37. Qe2 {[%emt 0:00:57]} Qf5+ {[%emt 0:00:06]} 38. Kd2 {[%emt 0:00:04]} Rg2 {[%emt 0:00:24]} 39. Nh4 {[%emt 0:01:38]} Ne4+ {[%emt 0:00:35]} (39... Bxc3+ $142 40. bxc3 Ne4+ 41. Kc2 Rxe2+ 42. Rxe2 Qd5) 40. Nxe4 {[%emt 0:00:16]} Rxe2+ {[%emt 0:00:09]} 41. Rxe2 {[%emt 0:30:09]} Qh3 {[%emt 0:30:39] Weighted Error Value: White=1.39/Black=0.65} 0-1

[Event "1st Serbian League 2022"]
[Site "Vrnjacka Banja"]
[Date "2022.09.23"]
[Round "4.34"]
[White "Ratkovic, Milovan"]
[Black "Djukic, Nikola"]
[Result "1-0"]
[ECO "D00"]
[WhiteElo "2411"]
[BlackElo "2536"]
[Annotator "TA"]
[PlyCount "91"]
[EventDate "2022.09.20"]
[EventType "team-tourn"]
[EventCountry "SRB"]
[SourceTitle "playchess.com"]
[Source "ChessBase"]
[SourceQuality "1"]
[TimeControl "40/5400+30:1800+30"]

{[%evp 10,91,7,0,12,5,4,7,6,2,16,-5,-7,0,0,-4,-6,-25,31,0,23,10,33,22,61,34,50,51,99,31,64,42,36,0,0,0,29,6,47,0,0,-5,-8,-4,-13,-2,74,50,66,68,77,71,203,216,333,342,329,337,530,524,538,336,609,598,944,608,583,531,533,534,532,527,512,463,1158,747,671,643,628,627,637,633,785,740]} 1. d4 {[%emt 0:00:03]} Nf6 {[%emt 0:01:22]} 2. Bg5 {[%emt 0:00:39]} g6 {[%emt 0:00:13]} 3. Bxf6 {[%emt 0:01:08]} exf6 {[%emt 0:00:07]} 4. e3 {[%emt 0:01:07]} d5 {[%emt 0:00:07]} 5. c4 {[%emt 0:01:19]} dxc4 {[%emt 0:00:09]} 6. Bxc4 {[%emt 0:00:25]} Bd6 {[%emt 0:00:38] D00: 1 d4 d5: Unusual lines.} 7. Nc3 {[%emt 0:00:27]} Nd7 {[%emt 0:01:42]} 8. Nf3 {[%emt 0:01:21]} O-O {[%emt 0:02:25] The position is equal.} 9. O-O {[%emt 0:01:42]} f5 {[%emt 0:04:06]} 10. Qc2 {[%emt 0:01:38]} c6 {[%emt 0:02:07]} 11. Rfd1 {[%emt 0:03:44]} Nf6 {[%emt 0:07:06]} 12. a4 {[%emt 0:06:39]} Qe7 {[%emt 0:06:06]} 13. d5 {[%emt 0:01:35]} c5 {[%emt 0:04:04] [#]} (13... Rb8 $11) 14. g3 $146 {[%emt 0:02:13]} ({Predecessor:} 14. Bf1 b6 15. Nd2 Bb7 16. Nc4 Rfd8 17. Qb3 Rab8 18. Nxd6 Rxd6 19. a5 Qe5 20. Bc4 {½-½ (36) Lelgemann,L (2052)-Zill,E (2248) ICCF email 2021}) 14... a6 {[%emt 0:08:59]} 15. Bf1 {[%emt 0:01:59]} Bd7 {[%emt 0:19:10]} 16. a5 {[%emt 0:04:45]} Rae8 {[%emt 0:04:10]} 17. Qb3 {[%emt 0:09:34]} Ng4 {[%emt 0:10:37]} 18. Re1 {[%emt 0:03:03]} Ne5 {[%emt 0:06:17]} (18... Bc8 $14) 19. Nd2 {[%emt 0:15:24]} (19. Nxe5 $16 Bxe5 20. Red1 (20. Qxb7 Rb8 $16)) 19... Rb8 {[%emt 0:06:17]} 20. f4 {[%emt 0:02:11]} c4 $1 {[%emt 0:00:17]} 21. Qc2 {[%emt 0:03:57]} Ng4 {[%emt 0:00:30]} 22. Nxc4 {[%emt 0:00:40][%cal Bd2c4,Bc4e5,Be5f3,Bf3g5,Bg5e4,Be4f6][%mdl 32]} Bc5 {[%emt 0:00:07]} 23. Kh1 {[%emt 0:13:05]} (23. Rad1 $5 {[%cal Rd5d6]}) 23... Bb5 {[%emt 0:01:16]} 24. Nxb5 {[%emt 0:05:53]} (24. e4 $1 $14 {was preferrable.}) 24... axb5 $11 {[%emt 0:00:08]} 25. h3 {[%emt 0:02:05]} Nf6 {[%emt 0:04:54]} 26. Ne5 {[%emt 0:00:53]} Bd6 {[%emt 0:00:27]} 27. Nf3 $36 {[%emt 0:01:25][%mdl 2048] White fights for an advantage.} ({Much weaker is} 27. Bxb5 Bxe5 28. fxe5 Qxe5 $17) 27... Nxd5 {[%emt 0:03:00] [#]} (27... Bb4 $11) 28. e4 $1 $16 {[%emt 0:01:02]} Nb4 {[%emt 0:01:12]} 29. Qb3 {[%emt 0:01:16] Threatens to win with e5.} fxe4 {[%emt 0:00:21]} 30. Ng5 {[%emt 0:00:22] White is more active.} Qd7 {[%emt 0:02:27] This costs Black the game.} (30... Nc6 $16) 31. Nxe4 $18 {[%emt 0:01:06] Nf6+ is the strong threat.} Qc6 {[%emt 0:03:12]} (31... Qc7 $142 32. Rac1 (32. Bxb5 Rbd8 $16) 32... Nc6 33. Nf6+ (33. Qxb5 Rfc8 $16) (33. Bxb5 Be7 $18) 33... Kh8) 32. Rac1 {[%emt 0:03:03]} Qa6 {[%emt 0:00:06]} 33. Nf6+ {[%emt 0:01:18]} Kh8 {[%emt 0:00:05]} (33... Kg7 {keeps fighting.} 34. Nd7 Rbd8) 34. Nd7 {[%emt 0:00:14][%csl LRb8,LRf8]} Rbd8 {[%emt 0:01:31]} 35. Qc3+ {[%emt 0:01:40]} f6 $2 {[%emt 0:00:05]} (35... Kg8) 36. Nxf8 {[%emt 0:00:57] White is clearly winning.} Rxf8 {[%emt 0:00:18]} 37. Rcd1 {[%emt 0:02:15] [#] Hoping for Re6.} Na2 {[%emt 0:01:39]} 38. Qb3 {[%emt 0:00:41][%csl LRa2,LRb5]} Qxa5 {[%emt 0:00:10]} 39. Re6 {[%emt 0:03:00]} Bc5 {[%emt 0:00:19]} 40. Ra1 {[%emt 0:03:03]} Ra8 {[%emt 0:01:20]} 41. Qxb5 {[%emt 0:04:32]} b6 {[%emt 0:06:01]} (41... Qxb5 $142 42. Bxb5 Ra7 43. Re8+ Kg7) 42. Re8+ {[%emt 0:07:12]} Kg7 {[%emt 0:00:19]} 43. Rxa8 {[%emt 0:02:03]} Qxa8+ {[%emt 0:00:07]} 44. Bg2 {[%emt 0:00:07]} Qg8 {[%emt 0:00:50]} 45. Qd7+ {[%emt 0:00:35]} Kh6 {[%emt 0:00:05]} 46. Bd5 {[%emt 0:00:21] Prevents Qb3.  Weighted Error Value: White=0.31/Black=0.36} 1-0

[Event "1st Serbian League 2022"]
[Site "Vrnjacka Banja"]
[Date "2022.09.23"]
[Round "4.35"]
[White "Strikovic, Aleksa"]
[Black "Ratkovic, Miloje"]
[Result "1-0"]
[ECO "E14"]
[WhiteElo "2491"]
[BlackElo "2498"]
[Annotator "TA"]
[PlyCount "69"]
[EventDate "2022.09.20"]
[EventType "team-tourn"]
[EventCountry "SRB"]
[SourceTitle "playchess.com"]
[Source "ChessBase"]
[SourceQuality "1"]
[TimeControl "40/5400+30:1800+30"]

{[%evp 19,69,-6,-7,-7,-16,-6,-5,-10,0,0,14,0,0,0,-1,-5,41,44,58,54,60,46,50,64,60,53,39,8,29,0,0,-11,-20,-145,-149,-164,0,0,60,76,408,426,418,410,421,429,417,409,412,351,389,381]} 1. c4 {[%emt 0:00:43]} e6 {[%emt 0:00:11]} 2. Nf3 {[%emt 0:00:15]} d5 {[%emt 0:00:07]} 3. e3 {[%emt 0:00:12]} Nf6 {[%emt 0:00:13]} 4. b3 {[%emt 0:00:11]} Bd6 {[%emt 0:00:51]} 5. Bb2 {[%emt 0:00:17]} O-O {[%emt 0:00:15]} 6. Nc3 {[%emt 0:00:26]} b6 {[%emt 0:00:10]} 7. cxd5 {[%emt 0:06:05]} exd5 {[%emt 0:00:51]} 8. d4 {[%emt 0:00:05]} a6 {[%emt 0:01:30]} 9. Bd3 {[%emt 0:00:40]} Nbd7 {[%emt 0:00:22]} 10. O-O {[%emt 0:00:49]} Bb7 {[%emt 0:00:08]} 11. Ne2 {[%emt 0:03:37] E14: Queen's Indian: Classical Variation (4 e3).} Qe7 {[%emt 0:08:44]} 12. Ng3 {[%emt 0:02:10]} g6 {[%emt 0:01:47] Against Nf5} 13. Rc1 {[%emt 0:00:37] The position is equal.} Ng4 {[%emt 0:25:00]} 14. Re1 {[%emt 0:11:36]} f5 {[%emt 0:08:33] Against e4} 15. Qc2 {[%emt 0:11:50] [#]} Rac8 $146 {[%emt 0:10:28]} ({Predecessor:} 15... c6 16. e4 fxe4 17. Bxe4 Qg7 18. Bd3 Qh6 19. h3 Bxg3 20. fxg3 Ne3 21. Qd2 Nf5 22. Bxf5 {1-0 (22) Nguyen,H (2217)-Gonda,L (2443) Budapest 2006}) 16. Ne2 {[%emt 0:05:56]} c5 {[%emt 0:09:55]} 17. dxc5 {[%emt 0:06:42]} bxc5 {[%emt 0:23:22]} (17... Bxc5 $11 18. Qd2 (18. Qc3 Ngf6 $15) 18... Ndf6 19. Bxf6 Nxf6) 18. Nf4 $14 {[%emt 0:03:19]} (18. Qc3 $2 Nde5 19. Ng3 Nxf3+ 20. gxf3 Be5 $17) 18... Nde5 {[%emt 0:01:54]} 19. Nxe5 {[%emt 0:00:16]} Bxe5 {[%emt 0:00:26]} 20. h3 {[%emt 0:03:15]} Bxb2 {[%emt 0:01:00]} 21. Qxb2 {[%emt 0:00:02]} Ne5 {[%emt 0:00:16]} 22. Be2 {[%emt 0:01:07]} g5 {[%emt 0:01:26]} 23. Nh5 {[%emt 0:03:00]} g4 {[%emt 0:00:17]} 24. Nf4 {[%emt 0:01:14]} gxh3 {[%emt 0:04:44]} 25. Nxh3 Qg7 {[%cal Oe5f3]} 26. Qc2 (26. Rc2 $1 $11 {keeps the balance.}) 26... d4 $17 {[%csl Gb7][%cal Rg7g2] [#]} 27. Nf4 d3 (27... Kh8 $19 {[%cal Ob7g2] Hoping for ...Bxg2!} 28. exd4 {[#]} Bxg2 $1) 28. Bxd3 $11 {aiming for Kf1.} Nf3+ ({Better is} 28... Bxg2 $1 $11 29. Nxg2 Nf3+ 30. Kf1 Nh2+ 31. Kg1 Nf3+ 32. Kf1 Nh2+ 33. Kg1 Nf3+) 29. Kf1 $14 Nh2+ {[%mdl 8192] This costs Black the game.} (29... Nxe1 $16 30. Kxe1 (30. Rxe1 Qe5 $14) 30... Qe5) 30. Ke2 $18 Bxg2 {[%emt 0:00:00]} 31. Qc4+ ({Less strong is} 31. Bxf5 Bf3+ 32. Kd2 Rcd8+ 33. Bd3 Bc6 34. Qc4+ (34. Qxc5 $2 Bb5 $19) 34... Kh8 $14) 31... Kh8 {[%emt 0:00:00]} 32. Nxg2 Qxg2 {[%emt 0:00:00]} 33. Qc3+ {White is winning.} Qg7 {[%emt 0:00:18]} 34. Qxg7+ Kxg7 {[%emt 0:00:30]} 35. f3 {Inhibits Ng4.  Weighted Error Value: White=0.09 (flawless) /Black=0.35} 1-0

[Event "1st Serbian League 2022"]
[Site "Vrnjacka Banja"]
[Date "2022.09.23"]
[Round "4.36"]
[White "Dimic, Pavle"]
[Black "Perunovic, Miodrag"]
[Result "1-0"]
[ECO "E69"]
[WhiteElo "2352"]
[BlackElo "2413"]
[Annotator "TA"]
[PlyCount "79"]
[EventDate "2022.09.20"]
[EventType "team-tourn"]
[EventCountry "SRB"]
[SourceTitle "playchess.com"]
[Source "ChessBase"]
[SourceQuality "1"]
[TimeControl "40/5400+30:1800+30"]

{[%evp 26,79,49,47,46,57,45,47,55,56,87,84,94,86,130,93,98,90,143,147,152,135,188,189,354,362,422,444,458,452,595,572,763,622,895,870,858,831,1081,1038,1024,983,1143,1140,1050,1085,1108,672,1195,1197,2115,2037,29980,29981,29986,4407]} 1. d4 {[%emt 0:00:08]} Nf6 {[%emt 0:01:28]} 2. Nf3 {[%emt 0:00:20]} g6 {[%emt 0:00:10]} 3. c4 {[%emt 0:00:04]} Bg7 {[%emt 0:00:09]} 4. g3 {[%emt 0:00:04]} O-O {[%emt 0:00:10]} 5. Bg2 {[%emt 0:00:05]} d6 {[%emt 0:00:05]} 6. O-O {[%emt 0:00:25]} Nbd7 {[%emt 0:01:05]} 7. Nc3 {[%emt 0:00:09]} e5 {[%emt 0:00:03]} 8. e4 {[%emt 0:00:06]} exd4 {[%emt 0:00:06]} 9. Nxd4 {[%emt 0:00:05]} Re8 {[%emt 0:00:06]} 10. h3 {[%emt 0:00:28]} Nc5 {[%emt 0:00:03]} 11. Re1 {[%emt 0:00:30]} a5 {[%emt 0:00:03]} 12. Qc2 {[%emt 0:12:22]} a4 {[%emt 0:00:12]} 13. Be3 {[%emt 0:02:55]} c6 {[%emt 0:00:02]} 14. Rab1 {[%emt 0:09:47]} Qe7 {[%emt 0:11:05][%cal Rf6e4] E69: King's Indian: Fianchetto: 6...Nbd7 7 0-0 e5 8 e4 c6 9 h3.} 15. Rbd1 {[%emt 0:08:05]} Nfd7 {[%emt 0:09:40]} (15... Ncxe4 $2 16. Bc1 $18) 16. f4 {[%emt 0:12:57]} Qd8 {[%emt 0:18:45] White is slightly better.} 17. Nde2 {[%emt 0:16:14] [#]} Qa5 $146 {[%emt 0:04:06]} ({Predecessor:} 17... Qc7 18. b4 axb3 19. axb3 b6 20. b4 Ne6 21. b5 Bb7 22. Qd2 Bf8 23. e5 Ra3 24. exd6 {1-0 (35) Vucenovic,D (2302)-Mazzoni,L (1912) Samnaun 2004}) 18. Rxd6 {[%emt 0:21:31]} Qb4 {[%emt 0:05:12][%cal Oc5e4]} 19. Rdd1 {[%emt 0:01:51]} Qxc4 {[%emt 0:01:08]} 20. Bf2 {[%emt 0:01:03]} Nf8 {[%emt 0:03:35]} 21. Nd4 {[%emt 0:01:33]} a3 {[%emt 0:03:24]} ({Black should try} 21... Nfe6 22. e5 Rd8) 22. b3 $16 {[%emt 0:00:23][%cal Bb2b3,Bb3b4,Bb4c5][%mdl 32]} Qb4 {[%emt 0:00:01]} 23. e5 {[%emt 0:01:01]} h5 {[%emt 0:03:29] Against g4} (23... Qa5 $16 {was worth a try.} 24. Ncb5 Nxb3) 24. Qd2 $18 {[%emt 0:00:54] And now Nc2 would win.} Nfe6 $2 {[%emt 0:04:06]} (24... Qa5 25. Nc2 Na6) 25. Nc2 {[%emt 0:00:43]} Qb6 {[%emt 0:15:21]} 26. b4 {[%emt 0:00:17]} h4 {[%emt 0:10:15]} 27. bxc5 {[%emt 0:00:22]} Qc7 {[%emt 0:02:52]} 28. g4 {[%emt 0:00:22]} g5 {[%emt 0:00:44]} 29. fxg5 {[%emt 0:01:52]} Bxe5 {[%emt 0:02:05]} 30. Ne4 {[%emt 0:00:10] Strongly threatening Nf6+.} Rd8 {[%emt 0:00:41]} 31. Qe3 {[%emt 0:00:55] Black must now prevent Nf6+.} Bf4 {[%emt 0:00:01]} 32. Qc3 {[%emt 0:01:51]} Rxd1 {[%emt 0:00:55]} 33. Rxd1 {[%emt 0:00:03]} Be5 {[%emt 0:00:01]} 34. Nf6+ {[%emt 0:00:34]} Kf8 {[%emt 0:01:57]} 35. Qe3 {[%emt 0:01:23]} Ra4 {[%emt 0:01:00]} 36. Re1 {[%emt 0:02:05]} Bh2+ {[%emt 0:02:42]} 37. Kh1 {[%emt 0:00:19] Qd3 is the strong threat.} Rc4 {[%emt 0:00:01]} 38. Qd3 {[%emt 0:00:41] White threatens Qh7 and mate.} Rf4 {[%emt 0:01:07] [#]} 39. Qh7 $1 {[%emt 0:01:53]} Ke7 {[%emt 0:00:00] [#]} (39... Qd8 40. Bxh4) 40. Qh8 $1 {[%emt 0:02:18] Weighted Error Value: White=0.15 (very precise) /Black=0.50} 1-0